bitfinex-derivatives/quotes_ETHF0:USTF0_20250816
["timestamp","ask_amount","ask_price","bid_price","bid_amount"]
[1755318915977,2.41025257,4445.2,4445.1,0.10123393]
[1755318916179,2.57530846,4445.2,4445.1,0.10123393]
[1755318917181,2.02050846,4445.2,4444.1,3.2078]
[1755318917480,0.1599,4444.3,4444.2,1.0575]
[1755318917687,0.32495589,4444.3,4444.2,1.0575]
[1755318917879,0.16505589,4444.3,4444.2,1.0575]
[1755318918481,3.2078,4445.2,4445.1,0.4168]
[1755318918682,3.53503722,4445.2,4445.1,1.0356]
[1755318918884,4.24713722,4445.2,4445.1,1.0356]
[1755318919084,1.03933722,4445.2,4445.1,1.0356]
[1755318919288,0.32723722,4445.2,4445.1,1.0356]
[1755318919679,0.78263722,4445.2,4444.5,0.2509]
[1755318919884,1.60928979,4445.1,4444.7,1.0356]
[1755318920081,0.16493722,4445.0,4444.9,1.0356]
[1755318920383,1.63945257,4445.5,4445.0,0.6188]
[1755318920690,2.31875257,4445.5,4445.4,1.0356]
[1755318920885,0.16490246,4445.5,4445.4,1.0356]
[1755318921883,1.44435257,4446.1,4445.4,1.0356]
[1755318922085,0.16490896,4446.0,4445.9,1.0356]
[1755318922286,0.16489247,4446.0,4445.9,0.4168]
[1755318922988,0.1,4446.2,4445.9,1.0356]
[1755318923192,0.1,4446.2,4446.1,0.4168]
[1755318923493,0.1,4446.2,4446.1,1.0356]
[1755318923785,0.5226,4446.2,4446.1,1.0356]
[1755318923988,0.5226,4446.2,4446.1,0.4168]
[1755318923989,0.9744,4446.2,4446.1,0.4168]
[1755318924294,0.9744,4446.2,4446.1,1.0356]
[1755318925592,0.1,4446.2,4446.1,1.0356]
[1755318927191,1.44435257,4447.2,4447.1,0.4168]
[1755318927389,2.06679561,4447.2,4447.1,1.0356]
[1755318927592,3.01269561,4447.2,4447.1,1.212]
[1755318929386,3.01269561,4447.2,4447.1,0.6677]
[1755318929586,0.5905,4446.8,4446.7,0.8657]
[1755318929787,0.8128,4446.7,4446.4,3.4587]
[1755318929993,2.84765257,4446.5,4446.4,3.8755]
[1755318930194,3.01269561,4446.5,4446.4,3.8755]
[1755318930700,3.01269561,4446.5,4446.4,4.4198]
[1755318931702,3.01269561,4446.5,4446.4,3.2078]
[1755318933698,3.01286608,4446.5,4446.4,3.2078]
[1755318934001,3.01286608,4446.5,4446.4,3.4547]
[1755318934199,3.01286608,4446.5,4446.4,4.4198]
[1755318934395,3.01286608,4446.5,4446.4,3.2078]
[1755318935000,1.56851351,4446.5,4446.4,4.2434]
[1755318935199,1.56851351,4446.5,4446.4,4.4198]
[1755318935497,1.30751351,4446.5,4446.4,0.2469]
[1755318935797,1.56851351,4446.5,4446.4,1.212]
[1755318936400,1.56851351,4446.5,4446.4,1.0356]
[1755318936601,1.56852414,4446.5,4446.4,1.0356]
[1755318936901,1.4033,4445.7,4445.6,1.212]
[1755318937099,3.01289313,4445.7,4445.6,0.6148]
[1755318937398,3.01289313,4445.7,4445.6,0.2469]
[1755318937699,1.4033,4445.5,4445.4,0.2509]
[1755318937898,3.01289313,4445.5,4445.4,0.2509]
[1755318938094,1.4033,4445.2,4445.1,0.10123393]
[1755318938295,3.01289313,4445.2,4445.1,0.10123393]
[1755318938795,6.22069313,4445.2,4445.1,0.10123393]
[1755318939397,6.22069313,4445.2,4445.1,0.34813393]
[1755318939702,6.22069313,4445.2,4445.1,0.76893393]
[1755318939900,6.22069313,4445.2,4445.1,0.10123393]
[1755318940697,4.77634056,4445.2,4445.1,0.10123393]
[1755318940896,4.77634056,4445.2,4445.1,0.34813393]
[1755318941098,1.56854056,4445.2,4445.1,1.31323393]
[1755318942206,1.56937617,4445.2,4445.1,1.31323393]
[1755318944201,0.42707617,4445.2,4445.1,1.56193393]
[1755318944401,0.59497617,4445.2,4445.1,1.56193393]
[1755318944601,1.56937617,4445.2,4445.1,0.51803393]
[1755318944806,1.56937617,4445.2,4445.1,1.31323393]
[1755318945904,1.31267617,4445.2,4445.1,1.31323393]
[1755318946302,1.56937617,4445.2,4445.1,1.31323393]
[1755318948598,0.16607617,4445.2,4445.1,1.57403393]
[1755318948800,20.681,4445.8,4445.1,1.57403393]
[1755318949001,0.2418,4446.1,4445.7,0.5817]
[1755318949197,0.4121,4446.0,4445.9,0.3321]
[1755318949505,0.4121,4446.0,4445.9,1.4476]
[1755318950306,3.4496,4446.2,4445.9,0.5817]
[1755318950503,4.6982,4446.2,4446.1,1.1868]
[1755318951402,4.6982,4446.2,4446.1,0.1698]
[1755318952214,4.6982,4446.2,4446.1,0.6604]
[1755318952803,0.8428,4446.2,4446.1,1.4476]
[1755318953111,32.385,4446.5,4446.1,1.1868]
[1755318953306,0.1703,4446.2,4446.1,0.8425]
[1755318953705,0.4121,4446.2,4446.1,0.8425]
[1755318953906,0.4121,4446.2,4446.1,1.4476]
[1755318954508,1.4904,4446.2,4446.1,0.4194]
[1755318954708,1.4904,4446.2,4446.1,1.0245]
[1755318956806,1.4904,4446.2,4446.1,1.1868]
[1755318957715,0.4121,4446.2,4446.1,1.1868]
[1755318958108,1.0667,4446.2,4446.1,1.1868]
[1755318958306,1.2385,4446.2,4446.1,1.1868]
[1755318958511,1.4904,4446.2,4446.1,1.1868]
[1755318960407,21.4998,4446.2,4446.1,1.1868]
[1755318960714,21.4998,4446.2,4446.1,1.4476]
[1755318961013,21.48899044,4446.2,4446.1,1.4476]
[1755318961312,20.98329044,4446.2,4446.1,1.4476]
[1755318961508,20.98331233,4446.2,4446.1,1.4476]
[1755318961812,21.22511233,4446.2,4446.1,1.4476]
[1755318962009,0.16101233,4446.2,4446.1,1.1868]
[1755318962210,0.16101233,4446.2,4446.1,1.4476]
[1755318962410,3.6199,4446.8,4446.7,0.5817]
[1755318962613,25.1003,4446.8,4446.7,1.1868]
[1755318962810,1.2385,4446.1,4446.0,0.8227]
[1755318963011,2.93247738,4446.1,4446.0,0.6604]
[1755318963318,2.93247738,4446.1,4445.8,0.3641]
[1755318963509,0.8894,4446.0,4445.8,0.6051]
[1755318963711,1.4904,4445.9,4445.8,1.0245]
[1755318964010,22.1484,4445.9,4445.8,1.0245]
[1755318964207,22.1484,4445.9,4445.8,0.6604]
[1755318964607,0.601,4445.6,4445.5,1.0245]
[1755318964809,2.93247738,4445.6,4445.5,1.0245]
[1755318965316,2.93247738,4445.6,4445.5,1.1868]
[1755318965614,0.601,4445.2,4445.0,3.2078]
[1755318965819,0.601,4445.2,4444.8,0.241]
[1755318965820,2.93247738,4445.2,4445.1,0.51203393]
[1755318966115,2.93247738,4445.2,4445.1,0.10123393]
[1755318968116,2.93247738,4445.2,4445.1,0.34223393]
[1755318968712,2.93247738,4445.2,4445.1,1.12573393]
[1755318968914,2.93247738,4445.2,4445.1,1.28803393]
[1755318969215,2.93247738,4445.2,4445.1,0.10123393]
[1755318969618,2.93247738,4445.2,4445.1,1.28803393]
[1755318970120,20.658,4445.2,4445.1,1.54883393]
[1755318970314,0.2418,4445.4,4445.1,0.68293393]
[1755318970513,0.2418,4445.4,4445.3,1.4476]
[1755318970720,20.9018,4445.4,4445.3,1.4476]
[1755318970915,32.388,4446.1,4445.6,0.5817]
[1755318971119,32.388,4446.1,4445.3,1.44207738]
[1755318971120,20.659,4446.0,4445.9,0.5817]
[1755318971316,20.9008,4446.0,4445.9,1.4476]
[1755318971719,21.0711,4446.0,4445.9,1.4476]
[1755318971919,22.77407738,4446.0,4445.9,1.4476]
[1755318972120,23.16977738,4446.0,4445.9,1.1868]
[1755318972319,23.59347738,4446.0,4445.9,1.0245]
[1755318972518,0.1703,4445.4,4445.3,0.8227]
[1755318972719,0.4121,4445.4,4445.3,0.8227]
[1755318972921,0.4121,4445.4,4445.3,1.0835]
[1755318973121,0.4121,4445.4,4445.3,1.4476]
[1755318973422,4.4463,4446.3,4446.2,1.1868]
[1755318973617,25.31223013,4446.3,4446.2,1.1868]
[1755318974515,25.71506511,4446.3,4446.2,1.1868]
[1755318974918,0.2418,4446.2,4445.8,0.3641]
[1755318975118,1.3201,4445.8,4445.7,0.4119]
[1755318975419,0.9937412,4445.8,4445.7,1.4476]
[1755318975924,21.2270484,4445.8,4445.7,1.4476]
[1755318979826,22.2769484,4445.8,4445.7,1.0305]
[1755318980028,22.2769484,4445.8,4445.7,1.1984]
[1755318981316,22.0372484,4445.8,4445.7,0.6604]
[1755318981521,0.2604,4445.7,4445.5,3.2078]
[1755318981825,0.8251484,4445.6,4445.5,4.6793]
[1755318982027,0.1509484,4445.6,4445.5,4.6793]
[1755318982528,20.8024,4446.0,4445.9,1.4715]
[1755318982726,21.21380437,4446.0,4445.9,1.4715]
[1755318983026,21.84770437,4446.0,4445.9,1.4715]
[1755318983429,22.25910437,4446.0,4445.9,1.2226]
[1755318983926,22.25910437,4446.0,4445.9,0.6846]
[1755318984429,22.25910437,4446.0,4445.9,1.2226]
[1755318985731,22.25910437,4446.0,4445.9,1.0547]
[1755318986029,22.25910437,4446.0,4445.9,1.2226]
[1755318987434,22.25911562,4446.0,4445.9,1.2226]
[1755318988532,22.25911562,4446.0,4445.9,1.4715]
[1755318988533,0.57081562,4446.0,4445.9,1.4715]
[1755318988834,21.04941562,4446.0,4445.9,1.4715]
[1755318989435,0.15101562,4446.0,4445.9,1.4715]
[1755318990331,0.41141562,4446.0,4445.9,1.4715]
[1755318991529,0.57081562,4446.0,4445.9,1.4715]
[1755318992134,1.61611562,4446.0,4445.9,0.6846]
[1755318992633,1.61611562,4446.0,4445.9,1.0547]
[1755318993028,0.73651562,4446.0,4445.6,0.6238]
[1755318993235,1.4651,4445.7,4445.6,1.2226]
[1755318993430,0.57081562,4445.7,4445.6,1.4715]
[1755318993635,0.15101562,4445.7,4445.6,1.4715]
[1755318993829,0.2604,4445.9,4445.8,0.4307]
[1755318994035,0.41142843,4445.9,4445.8,1.4715]
[1755318994535,0.57082843,4445.9,4445.8,1.4715]
[1755318996230,1.61612843,4445.9,4445.8,0.6846]
[1755318996436,1.61612843,4445.9,4445.8,0.4309]
[1755318996638,1.61612843,4445.9,4445.8,0.1681]
[1755318998136,0.8796,4445.8,4445.5,3.2078]
[1755318998343,1.61612843,4445.7,4445.6,1.0547]
[1755319001748,1.61612843,4445.7,4445.6,0.1681]
[1755319002146,22.24212843,4445.7,4445.5,3.2078]
[1755319002456,1.82318231,4445.6,4445.5,3.8924]
[1755319002643,1.82318231,4445.6,4445.5,3.2078]
[1755319003150,1.82318231,4445.6,4445.5,3.4615]
[1755319003451,1.82318231,4445.6,4445.5,3.2078]
[1755319004152,1.82318231,4445.6,4445.5,3.4615]
[1755319004355,1.82318231,4445.6,4445.5,4.2625]
[1755319004652,1.82318231,4445.6,4445.5,4.4304]
[1755319004949,1.82299592,4445.6,4445.5,4.4304]
[1755319006154,1.61594204,4445.6,4445.5,4.4304]
[1755319007446,1.61594204,4445.6,4445.5,3.2078]
[1755319007647,0.5855,4445.3,4445.1,0.10123393]
[1755319007953,23.89121305,4445.2,4445.1,0.10123393]
[1755319008143,24.50518726,4445.2,4445.1,0.10123393]
[1755319008650,24.50491384,4445.2,4445.1,0.10123393]
[1755319010453,24.5005287,4445.2,4445.1,0.10123393]
[1755319011556,24.5005287,4445.2,4443.9,0.3838]
[1755319011745,2.57367738,4444.0,4443.9,0.6837]
[1755319011947,23.35251942,4444.0,4443.9,1.0675]
[1755319012148,23.35251942,4444.0,4443.9,1.2415]
[1755319012447,23.60801942,4444.0,4443.9,1.2415]
[1755319012952,23.60801942,4444.0,4443.9,0.6837]
[1755319013842,23.60801942,4444.0,4443.8,3.2078]
[1755319014047,1.3871,4443.9,4443.8,3.4551]
[1755319014346,0.6219,4443.8,4443.4,0.6311]
[1755319014546,2.82917738,4443.5,4443.4,1.2415]
[1755319015549,0.1623,4443.2,4443.1,0.2473]
[1755319015851,23.27427738,4443.2,4443.1,1.4854]
[1755319016155,23.27427738,4443.2,4443.1,1.2415]
[1755319016453,23.45917738,4443.2,4443.1,1.2415]
[1755319016841,23.45917738,4443.2,4442.8,3.4517]
[1755319016842,23.45917738,4443.2,4442.7,0.2473]
[1755319017042,1.53733648,4443.1,4442.7,0.2473]
[1755319017245,1.53733648,4443.1,4442.3,3.2078]
[1755319017246,20.79723648,4443.1,4443.0,6.4854]
[1755319017451,20.647,4443.1,4443.0,6.4854]
[1755319017647,20.647,4443.1,4443.0,5.6837]
[1755319017851,21.8492,4443.1,4443.0,5.6837]
[1755319018058,22.0341,4443.1,4443.0,5.6837]
[1755319018548,1.3871,4443.1,4443.0,6.2415]
[1755319018854,20.684,4443.1,4443.0,5.6104]
[1755319019346,21.2643,4443.1,4443.0,6.0675]
[1755319019547,22.0711,4443.1,4443.0,5.6837]
[1755319020352,1.44207738,4443.5,4443.1,1.4854]
[1755319020555,0.2555,4443.4,4443.3,1.2415]
[1755319020857,20.9535,4443.4,4443.3,1.4854]
[1755319021357,21.4931,4443.4,4443.3,1.4854]
[1755319021548,21.1267,4443.4,4443.3,1.4854]
[1755319021750,21.5338,4443.4,4443.3,1.2415]
[1755319021954,1.3871,4443.1,4443.0,6.2415]
[1755319022256,23.52917738,4443.1,4443.0,6.2415]
[1755319022445,23.34427738,4443.1,4443.0,6.2415]
[1755319022645,21.3735,4443.1,4443.0,6.4854]
[1755319023455,21.1287,4443.1,4443.0,6.4854]
[1755319024057,0.4287,4443.7,4443.6,1.4854]
[1755319024262,22.81957738,4443.7,4443.6,1.4854]
[1755319024551,0.2555,4443.6,4443.1,0.2473]
[1755319024751,0.4287,4443.2,4443.1,0.4213]
[1755319024957,21.7579,4443.2,4443.1,0.8577]
[1755319025161,21.7579,4443.2,4443.1,1.2415]
[1755319025659,21.1467,4443.2,4443.1,1.4854]
[1755319028160,21.7579,4443.2,4443.1,1.2415]
[1755319028460,21.3915,4443.2,4443.1,1.2415]
[1755319028759,21.1467,4443.2,4443.1,1.2415]
[1755319028957,1.59972879,4445.9,4443.1,1.2415]
[1755319028958,0.2555,4443.9,4443.8,0.9777]
[1755319029150,10.756,4444.1,4443.8,1.4854]
[1755319029352,11.1847,4444.1,4444.0,0.6104]
[1755319029558,13.23797738,4444.1,4444.0,1.4854]
[1755319029955,13.40027738,4444.1,4444.0,1.2415]
[1755319030153,13.55258848,4444.1,4444.0,1.2415]
[1755319030354,3.4633,4444.8,4444.2,0.3838]
[1755319030553,20.8783048,4444.7,4444.6,1.4854]
[1755319031155,21.3070048,4444.7,4444.6,1.4854]
[1755319031360,21.1547,4444.7,4444.6,1.4854]
[1755319031965,21.3995,4444.7,4444.6,1.4854]
[1755319032159,0.6735,4444.7,4444.6,1.2415]
[1755319032363,21.3995,4444.7,4444.6,1.2415]
[1755319032556,21.5618,4444.7,4444.6,0.6837]
[1755319032759,21.5618,4444.7,4443.9,4.0655]
[1755319032760,1.3871,4444.0,4443.9,4.0655]
[1755319033057,2.82917738,4444.0,4443.9,3.8182]
[1755319033256,0.2555,4444.3,4444.2,0.6104]
[1755319033455,20.9935,4444.3,4444.2,1.4854]
[1755319033864,21.1667,4444.3,4444.2,1.4854]
[1755319034161,23.21997738,4444.3,4444.2,1.2415]
[1755319034360,23.56717738,4444.3,4444.2,1.2415]
[1755319034958,22.85357738,4444.3,4444.2,1.2415]
[1755319037466,23.38227738,4444.3,4444.2,1.2415]
[1755319037665,23.56717738,4444.3,4444.2,0.6837]
[1755319038059,23.56717738,4444.3,4444.2,1.2415]
[1755319038361,23.70790382,4444.3,4444.2,1.2415]
[1755319040269,23.70790382,4444.3,4444.2,0.8182]
[1755319040468,0.5671,4444.1,4444.0,0.2487]
[1755319040666,1.50462644,4444.1,4443.9,3.2078]
[1755319040867,2.94670382,4444.0,4443.9,3.4565]
[1755319041166,22.22162644,4444.0,4443.9,4.3884]
[1755319041367,1.32002644,4444.0,4443.9,4.3884]
[1755319041560,22.03602644,4444.0,4443.9,4.3884]
[1755319041960,21.27442644,4444.0,4443.9,4.3884]
[1755319042162,21.27442644,4444.0,4443.9,4.6523]
[1755319043368,21.87422644,4444.0,4443.9,4.6523]
[1755319043667,21.51532644,4444.0,4443.9,4.3884]
[1755319043867,23.66270382,4444.0,4443.9,3.2078]
[1755319044263,23.66270382,4444.0,4443.9,3.6168]
[1755319044560,23.66270382,4444.0,4443.9,3.2078]
[1755319044760,23.66270382,4444.0,4443.9,4.22]
[1755319045157,23.66270382,4444.0,4443.9,1.0122]
[1755319046775,23.66274049,4444.0,4443.9,1.0122]
[1755319047967,1.50466311,4444.0,4443.9,1.1806]
[1755319048176,0.15276311,4444.0,4443.9,4.6523]
[1755319049479,20.692,4444.2,4443.9,4.6523]
[1755319049774,0.2413,4444.7,4444.6,1.4445]
[1755319049973,0.39412794,4444.7,4444.6,1.4445]
[1755319050373,0.15282794,4444.7,4444.6,1.4445]
[1755319050578,0.2413,4445.2,4445.1,0.5679]
[1755319050875,0.39409676,4445.2,4445.1,1.4445]
[1755319051775,0.55849676,4445.2,4445.1,1.4445]
[1755319052676,0.15279676,4445.2,4445.1,1.4445]
[1755319053175,0.2413,4445.6,4445.1,2.25867738]
[1755319053473,3.2078,4445.8,4445.4,1.4445]
[1755319053676,0.39400846,4445.7,4445.6,1.4445]
[1755319053876,0.55840846,4445.7,4445.6,1.4445]
[1755319054177,1.3519,4445.7,4445.6,0.409]
[1755319054377,1.3519,4445.7,4445.6,0.6482]
[1755319054677,1.1673,4445.7,4445.6,1.1806]
[1755319054878,0.2413,4445.7,4445.6,1.4445]
[1755319055073,0.4057,4445.7,4445.4,3.2078]
[1755319055273,0.4057,4445.6,4445.5,0.2487]
[1755319055479,1.3519,4445.6,4445.5,0.8166]
[1755319055777,1.3519,4445.6,4445.5,1.1806]
[1755319056285,0.6466,4445.6,4445.5,1.4445]
[1755319056476,1.0055,4445.6,4445.5,1.1806]
[1755319056676,1.1673,4445.6,4445.5,1.1806]
[1755319056974,1.3519,4445.6,4445.4,3.2078]
[1755319057482,1.44207738,4445.7,4445.4,3.2078]
[1755319057483,22.0329,4445.5,4445.4,3.2078]
[1755319057673,22.18798629,4445.5,4445.4,3.2078]
[1755319059378,22.18798629,4445.5,4445.4,3.6168]
[1755319059582,22.18798629,4445.5,4445.4,4.22]
[1755319059980,22.18798629,4445.5,4445.4,4.3884]
[1755319060180,22.18798629,4445.5,4445.4,1.1806]
[1755319060676,22.18798629,4445.5,4445.0,0.5243]
[1755319060677,0.5671,4445.1,4445.0,0.5243]
[1755319060877,1.3519,4445.1,4445.0,1.0122]
[1755319061374,1.3519,4445.0,4444.9,4.1397]
[1755319061978,1.3519,4445.0,4444.9,4.3884]
[1755319064384,1.3519,4445.0,4444.9,3.856]
[1755319064577,2.79397738,4445.0,4444.9,3.6168]
[1755319064779,2.79397738,4445.0,4444.9,3.2078]
[1755319065176,2.94909928,4445.0,4444.9,3.6168]
[1755319065473,0.6466,4445.0,4444.9,4.3884]
[1755319065775,0.4057,4445.0,4444.9,4.3884]
[1755319065981,20.657,4445.1,4445.0,1.4445]
[1755319066182,21.97942013,4445.1,4445.0,1.1806]
[1755319066374,22.16402013,4445.1,4445.0,1.1806]
[1755319066570,22.16402013,4445.1,4445.0,0.6482]
[1755319066884,22.16402566,4445.1,4445.0,0.1603]
[1755319067183,22.16402566,4445.1,4445.0,0.6482]
[1755319067387,21.97442566,4445.1,4445.0,1.1806]
[1755319068081,22.15902566,4445.1,4445.0,1.1806]
[1755319069283,22.15902566,4445.1,4444.9,3.2078]
[1755319069486,1.54812566,4445.0,4444.9,3.2078]
[1755319070079,1.54815038,4445.0,4444.9,4.4513]
[1755319072988,1.54820204,4445.0,4444.9,4.4513]
[1755319075091,1.54820204,4445.0,4444.9,3.6299]
[1755319075295,1.54820204,4445.0,4444.9,4.4513]
[1755319076194,0.41090204,4445.0,4444.9,4.6914]
[1755319076588,0.15520204,4445.0,4444.9,4.6914]
[1755319078791,20.638,4445.5,4445.0,0.8871]
[1755319078990,0.1855,4446.1,4445.4,3.8043]
[1755319079194,0.98699401,4446.0,4445.9,1.2435]
[1755319079395,0.37197922,4446.0,4445.9,1.4836]
[1755319079596,0.1554249,4446.0,4445.9,1.4836]
[1755319079791,0.2557,4446.0,4445.9,1.4836]
[1755319079986,1.19647413,4446.0,4445.9,1.4836]
[1755319080192,1.58032939,4446.0,4445.9,1.2435]
[1755319080597,1.76582939,4446.0,4445.9,1.2435]
[1755319081295,1.54917413,4446.0,4445.9,1.2435]
[1755319082299,1.36367413,4446.0,4445.9,1.2435]
[1755319082599,0.82247413,4446.0,4445.9,4.6914]
[1755319082799,0.58277413,4446.0,4445.9,4.6914]
[1755319083299,1.36367413,4446.0,4445.9,4.4513]
[1755319083493,1.70459588,4446.0,4445.9,4.0653]
[1755319083694,1.54912175,4446.0,4445.9,4.0653]
[1755319083896,1.54912175,4446.0,4445.9,3.2078]
[1755319084399,0.4412,4445.9,4445.4,3.2078]
[1755319084596,1.3937,4445.5,4445.4,3.4688]
[1755319084799,1.54912175,4445.5,4445.4,3.4688]
[1755319085098,1.54912175,4445.5,4445.4,4.2769]
[1755319085296,1.54912175,4445.5,4445.4,4.4513]
[1755319087995,1.54912175,4445.5,4445.1,0.261]
[1755319088200,1.3937,4445.3,4445.2,1.2435]
[1755319088395,1.36362175,4445.3,4445.2,1.2435]
[1755319088597,1.19642175,4445.3,4445.2,1.4836]
[1755319089399,0.82242175,4445.3,4445.2,1.4836]
[1755319089900,0.58272175,4445.3,4445.2,1.4836]
[1755319090201,0.15542175,4445.3,4445.2,1.4836]
[1755319090998,0.2557,4445.8,4445.2,0.5965]
[1755319091199,0.58085813,4445.7,4445.6,4.6914]
[1755319092102,0.15355813,4445.7,4445.6,4.6914]
[1755319093102,0.58085813,4445.7,4445.6,4.6914]
[1755319093698,0.40925813,4445.7,4445.6,4.6914]
[1755319094594,0.15355813,4445.7,4445.6,4.6914]
[1755319095495,0.2557,4445.9,4445.7,0.8871]
[1755319095691,0.4273,4445.9,4445.8,1.4836]
[1755319095896,0.58078432,4445.9,4445.8,1.4836]
[1755319096298,0.15348432,4445.9,4445.8,1.4836]
[1755319096500,0.40918432,4445.9,4445.8,1.4836]
[1755319096899,0.58078432,4445.9,4445.8,1.4836]
[1755319097404,1.19448432,4445.9,4445.8,1.4836]
[1755319097599,1.36168432,4445.9,4445.8,1.2435]
[1755319097902,1.19448432,4445.9,4445.8,1.4836]
[1755319098504,1.53778432,4445.9,4445.8,1.2435]
[1755319099406,1.35358432,4445.9,4445.8,1.2435]
[1755319099598,1.35358432,4445.9,4445.8,1.4932]
[1755319102508,1.35358432,4445.9,4445.8,1.2435]
[1755319102908,1.53778432,4445.9,4445.8,1.2435]
[1755319103906,1.4004,4445.7,4445.6,3.2078]
[1755319104103,2.9959617,4445.7,4445.6,3.2078]
[1755319105511,1.55388432,4445.7,4445.6,3.4555]
[1755319106611,1.55405119,4445.7,4445.6,3.4555]
[1755319108612,1.55405119,4445.7,4445.6,3.6146]
[1755319108805,1.55405119,4445.7,4445.6,4.0057]
[1755319110108,3.21090524,4445.7,4445.6,3.2078]
[1755319110813,3.21090524,4445.7,4445.1,0.6388]
[1755319111011,0.5794,4445.2,4445.1,0.6388]
[1755319111202,1.55405119,4445.2,4445.1,0.2477]
[1755319111601,1.55405119,4445.2,4445.1,0.7979]
[1755319111802,1.55405119,4445.2,4445.1,1.0573]
[1755319112310,1.55405119,4445.2,4445.1,0.6662]
[1755319112513,1.55405119,4445.2,4444.9,3.2078]
[1755319112514,1.4004,4445.0,4444.9,3.4555]
[1755319112713,1.55405119,4445.0,4444.9,3.2078]
[1755319112910,1.55405119,4445.0,4444.9,3.4555]
[1755319113216,1.21075119,4445.0,4444.9,4.4373]
[1755319113415,1.55405119,4445.0,4444.9,4.4373]
[1755319114315,0.78355119,4445.0,4444.9,4.4373]
[1755319114518,0.15365119,4445.0,4444.9,4.687]
[1755319114811,0.2567,4445.0,4444.9,4.1896]
[1755319115015,0.41035119,4445.0,4444.9,3.7985]
[1755319115417,0.83065119,4445.0,4444.9,3.7985]
[1755319115618,1.21075119,4445.0,4444.9,4.4373]
[1755319116217,1.36985119,4445.0,4444.9,4.4373]
[1755319117417,2.99612857,4445.0,4444.9,3.2078]
[1755319120123,0.5794,4444.5,4444.4,0.9818]
[1755319120323,2.99612857,4444.5,4444.4,0.9818]
[1755319120819,0.83065119,4444.5,4444.4,1.4792]
[1755319121023,0.58085119,4444.5,4444.4,1.4792]
[1755319121523,0.41035119,4444.5,4444.4,1.4792]
[1755319121718,0.58085119,4444.5,4444.4,1.2295]
[1755319121918,1.55405119,4444.5,4444.4,1.2295]
[1755319122119,1.4004,4444.5,4444.4,1.2295]
[1755319122314,1.2162,4444.5,4444.4,1.4792]
[1755319122920,1.0571,4444.5,4444.4,1.4792]
[1755319123122,0.677,4444.5,4444.4,1.4792]
[1755319125521,1.4004,4444.5,4444.4,1.2295]
[1755319125722,1.4004,4444.5,4444.4,0.6662]
[1755319126114,1.55055281,4444.5,4444.4,0.6662]
[1755319126520,0.57735281,4444.5,4444.4,1.4792]
[1755319126724,0.15015281,4444.5,4444.4,2.92127738]
[1755319126914,0.2567,4444.9,4444.4,2.03277738]
[1755319127121,0.15012505,4444.8,4444.7,0.5907]
[1755319127320,0.40682505,4444.8,4444.7,1.4792]
[1755319128725,0.57732505,4444.8,4444.7,1.4792]
[1755319128926,1.56792505,4444.8,4444.7,0.6662]
[1755319129129,1.56792505,4444.8,4444.7,0.4068]
[1755319129322,0.73152505,4444.8,4444.5,0.3836]
[1755319129521,0.72252505,4444.7,4444.6,0.6545]
[1755319129723,0.72252505,4444.7,4444.6,1.2099]
[1755319130026,1.55312505,4444.7,4444.6,1.2099]
[1755319131019,1.36732505,4444.7,4444.6,1.2099]
[1755319132129,1.36732505,4444.7,4444.6,1.4585]
[1755319132527,0.56252505,4444.7,4444.6,1.4585]
[1755319135427,1.44207738,4445.2,4444.6,0.9683]
[1755319135631,1.44207738,4445.2,4444.6,0.5847]
[1755319135632,0.35991216,4445.1,4444.6,0.5847]
[1755319135833,1.0465,4444.9,4444.8,1.2099]
[1755319136034,1.19674887,4444.9,4444.8,1.2099]
[1755319136340,1.55324887,4444.9,4444.8,1.2099]
[1755319138439,1.36752017,4444.9,4444.8,1.2099]
[1755319139035,1.55332017,4444.9,4444.8,1.2099]
[1755319140042,1.55335476,4444.9,4444.8,1.2099]
[1755319140739,0.15035476,4444.9,4444.8,4.6663]
[1755319140941,0.15035476,4444.9,4444.8,7.6663]
[1755319141136,3.4587,4445.8,4445.7,1.4585]
[1755319141336,3.60907992,4445.8,4445.7,1.4585]
[1755319142236,3.77057992,4445.8,4445.7,1.4585]
[1755319142633,3.35817992,4445.8,4445.7,1.4585]
[1755319142833,0.40127992,4445.8,4445.7,1.4585]
[1755319143041,0.15037992,4445.8,4445.7,1.4585]
[1755319143343,0.1,4446.2,4446.1,0.5847]
[1755319143641,0.2501865,4446.2,4446.1,4.6663]
[1755319143942,0.1,4446.2,4446.1,4.6663]
[1755319150138,0.3509,4446.2,4446.1,4.4177]
[1755319150337,1.503,4446.2,4446.1,4.4177]
[1755319150541,1.3172,4446.2,4446.1,4.4177]
[1755319150845,1.3172,4446.2,4446.1,4.6663]
[1755319151144,1.503,4446.2,4446.1,4.4177]
[1755319152040,1.3172,4446.2,4446.1,4.4177]
[1755319152240,0.5124,4446.2,4446.1,4.6663]
[1755319152641,0.3509,4446.2,4446.1,4.6663]
[1755319152842,0.1,4446.2,4446.1,4.6663]
[1755319153046,0.6448,4446.9,4446.1,3.7925]
[1755319153242,0.1615,4447.0,4446.9,1.2099]
[1755319153442,32.394,4448.2,4446.9,1.2099]
[1755319153633,3.8045,4447.6,4447.5,0.4129]
[1755319153839,3.966,4447.6,4447.5,1.0381]
[1755319154236,4.6108,4447.6,4447.5,1.0381]
[1755319154546,0.4017,4447.0,4446.9,0.7916]
[1755319154741,1.403,4447.0,4446.9,0.6545]
[1755319155445,1.403,4447.0,4446.9,1.0381]
[1755319156044,1.2172,4446.9,4446.8,4.1761]
[1755319156639,1.2172,4446.9,4446.8,4.4177]
[1755319157343,1.403,4446.9,4446.8,4.4177]
[1755319157547,1.403,4446.9,4446.8,3.2078]
[1755319157739,2.84507738,4446.9,4446.8,3.2078]
[1755319159049,2.84507738,4446.9,4446.3,0.2416]
[1755319159238,0.7786,4446.4,4446.2,3.2078]
[1755319159443,1.4209,4446.3,4446.2,3.2078]
[1755319159850,1.4209,4446.3,4446.2,4.4345]
[1755319160449,1.4209,4446.3,4446.2,4.0493]